[Event "Charlotte Spring IM-B 2024"]
[Site "Charlotte"]
[Date "2024.03.29"]
[Round "3.4"]
[White "Chirilov, James A"]
[Black "Narayanan, Samrug"]
[Result "0-1"]
[ECO "C54"]
[WhiteElo "2082"]
[BlackElo "2343"]
[Annotator "RC"]
[PlyCount "124"]
[EventDate "2024.03.27"]
[EventType "tourn"]
[EventCountry "USA"]
[SourceTitle "playchess.com"]
[Source "ChessBase"]
[SourceQuality "1"]
[TimeControl "5400+30"]

1. e4 {[%emt 0:00:32]} e5 {[%emt 0:00:05]} 2. Nf3 {[%emt 0:00:14]} Nc6 {[%emt 1:31:25]} 3. Bc4 {[%emt 0:00:07]} Bc5 {[%emt 0:00:00]} 4. c3 {[%emt 0:00:14]} Nf6 {[%emt 0:00:00]} 5. d3 {[%emt 0:00:05]} O-O {[%emt 0:00:00]} 6. O-O {[%emt 0:00:06]} d6 {[%emt 0:00:00]} 7. Re1 {[%emt 0:00:59]} a5 {[%emt 0:00:00]} 8. Nbd2 {[%emt 0:00:27]} Ne7 {[%emt 0:03:00]} 9. d4 {[%emt 0:01:49]} exd4 {[%emt 0:00:00]} 10. cxd4 {[%emt 0:00:05]} Ba7 {[%emt 0:00:00]} 11. Bb3 {[%emt 0:03:08]} Ng6 {[%emt 0:00:00]} 12. h3 {[%emt 0:04:05]} c6 {[%emt 0:00:00]} 13. Nf1 {[%emt 0:11:18]} d5 {[%emt 0:00:00]} 14. e5 {[%emt 0:00:39]} Ne4 {[%emt 0:00:00]} 15. N1d2 {[%emt 0:03:35]} Nxd2 {[%emt 0:03:30]} 16. Bxd2 {[%emt 0:00:47]} Bf5 {[%emt 0:00:00]} 17. Bc2 {[%emt 0:03:22]} Bxc2 {[%emt 0:00:00]} 18. Qxc2 {[%emt 0:00:11]} f6 {[%emt 0:00:00]} 19. e6 {[%emt 0:05:21]} Ne7 {[%emt 0:02:00]} 20. a4 {[%emt 0:06:19]} Bb8 {[%emt 0:00:00]} 21. b4 {[%emt 0:07:43]} axb4 {[%emt 0:00:00]} 22. Bxb4 {[%emt 0:00:46]} Re8 {[%emt 0:00:00]} 23. a5 {[%emt 0:04:28]} Bd6 {[%emt 0:00:00]} 24. Bc3 {[%emt 0:09:28]} Ng6 {[%emt 0:02:30]} 25. Re3 {[%emt 0:08:52]} Bf4 {[%emt 0:00:00]} 26. Re2 {[%emt 0:00:34]} Bc7 {[%emt 0:00:00]} 27. Qf5 {[%emt 0:08:08]} Bxa5 {[%emt 0:00:00]} 28. e7 {[%emt 0:10:38]} Rxe7 {[%emt 0:00:00]} 29. Rxe7 {[%emt 0:02:06]} Nxe7 {[%emt 0:00:00]} 30. Qe6+ {[%emt 0:00:12]} Kf8 {[%emt 0:00:00]} 31. Bxa5 {[%emt 0:03:15]} Rxa5 {[%emt 0:00:00]} 32. Re1 {[%emt 0:00:17]} Ra6 {[%emt 0:00:00]} 33. Qg4 {[%emt 0:01:06]} Ra8 {[%emt 0:00:00]} 34. h4 {[%emt 0:00:54]} Qd6 {[%emt 0:00:00]} 35. h5 {[%emt 0:02:07]} b5 {[%emt 0:00:00]} 36. h6 {[%emt 0:00:51]} g6 {[%emt 0:00:00]} 37. Re6 {[%emt 0:01:03]} Ra1+ {[%emt 0:00:00]} 38. Ne1 {[%emt 0:00:02]} Qb4 {[%emt 0:00:00]} 39. Qe2 {[%emt 0:00:59]} Kf7 {[%emt 0:07:30]} 40. Kh2 {[%emt 0:00:25]} Ra2 {[%emt 0:00:00]} 41. Rxe7+ {[%emt 0:00:38]} Qxe7 {[%emt 0:00:00]} 42. Qxa2 {[%emt 0:00:04]} Qxe1 {[%emt 0:00:00]} 43. Qa8 {[%emt 0:01:01]} g5 {[%emt 0:00:00]} 44. Qxc6 {[%emt 0:01:08]} Qxf2 {[%emt 0:00:00]} 45. Qd7+ {[%emt 0:00:35]} Kg6 {[%emt 0:03:00]} 46. Qg7+ {[%emt 0:00:25]} Kh5 {[%emt 0:00:00]} 47. Qxh7 {[%emt 0:00:59]} g4 {[%emt 0:00:00]} 48. Qd3 {[%emt 0:01:50]} Kxh6 {[%emt 0:00:00]} 49. Qxb5 {[%emt 0:00:20]} Qf4+ {[%emt 0:00:00]} 50. g3 {[%emt 0:00:39]} Qxd4 {[%emt 0:00:28]} 51. Qe2 {[%emt 0:00:25]} Qe4 {[%emt 0:00:13]} 52. Qd2+ {[%emt 0:00:18]} Kg6 {[%emt 0:00:05]} 53. Qa5 {[%emt 0:00:29]} Qe2+ {[%emt 0:00:15]} 54. Kg1 {[%emt 0:00:26]} Qe3+ {[%emt 0:00:04]} 55. Kh2 {[%emt 0:00:17]} Qf2+ {[%emt 0:00:04]} 56. Kh1 {[%emt 0:00:03]} Qf1+ {[%emt 0:00:05]} 57. Kh2 {[%emt 0:00:03]} Qh3+ {[%emt 0:00:06]} 58. Kg1 {[%emt 0:00:02]} Qxg3+ {[%emt 0:00:10]} 59. Kh1 {[%emt 0:00:13]} Qf3+ {[%emt 0:00:36]} 60. Kh2 {[%emt 0:00:09]} g3+ {[%emt 0:00:05]} 61. Kh3 {[%emt 0:00:03]} g2+ {[%emt 0:00:12]} 62. Kh2 {[%emt 0:00:07]} Qf2 {[%emt 0:00:12]} 0-1

[Event "Charlotte Spring IM-B 2024"]
[Site "Charlotte"]
[Date "2024.03.28"]
[Round "3.5"]
[White "Nandhakumar, Vaseegaran"]
[Black "Becerra Rivero, Julio"]
[Result "1/2-1/2"]
[ECO "A39"]
[WhiteElo "2251"]
[BlackElo "2411"]
[Annotator "TA"]
[PlyCount "24"]
[EventDate "2024.03.27"]
[EventType "tourn"]
[EventCountry "USA"]
[SourceTitle "playchess.com"]
[Source "ChessBase"]
[SourceQuality "1"]
[TimeControl "5400+30"]

{[%evp 19,24,57,54,62,72,64,75]} 1. Nf3 {[%emt 0:00:02]} g6 {[%emt 0:00:11]} 2. g3 {[%emt 0:00:07]} Bg7 {[%emt 0:00:06]} 3. d4 {[%emt 0:00:05]} c5 {[%emt 0:01:01]} 4. Bg2 {[%emt 0:03:10]} cxd4 {[%emt 0:01:27]} 5. Nxd4 {[%emt 0:00:07]} Nf6 {[%emt 0:00:44]} 6. c4 {[%emt 0:00:37]} O-O {[%emt 0:01:16]} 7. O-O {[%emt 0:00:04]} Nc6 {[%emt 0:02:43]} 8. Nc3 {[%emt 0:01:19]} Ng4 {[%emt 0:05:05]} 9. e3 {[%emt 0:04:49]} Nge5 {[%emt 0:03:32]} 10. b3 {[%emt 0:01:18]} d6 {[%emt 0:00:37]} 11. Bb2 {[%emt 0:00:43]} Bg4 {[%emt 0:05:23]} 12. f3 {[%emt 0:04:03]} Bd7 {[%emt 0:00:19] Weighted Error Value: White=0.00 (flawless) /Black=0.05 (flawless) .  OK:         	White=1     	Black=1} 1/2-1/2

[Event "Charlotte Spring IM-B 2024"]
[Site "Charlotte"]
[Date "2024.03.29"]
[Round "4.1"]
[White "Diaz Charpentier, Kristel Meliss"]
[Black "Becerra Rivero, Julio"]
[Result "1/2-1/2"]
[ECO "A21"]
[WhiteElo "1990"]
[BlackElo "2411"]
[Annotator "RC"]
[PlyCount "84"]
[EventDate "2024.03.27"]
[EventType "tourn"]
[EventCountry "USA"]
[SourceTitle "playchess.com"]
[Source "ChessBase"]
[SourceQuality "1"]
[TimeControl "5400+30"]

1. d4 {[%emt 0:01:07]} d6 {[%emt 0:00:20]} 2. c4 {[%emt 0:00:15]} e5 {[%emt 0:00:17]} 3. Nc3 {[%emt 0:00:07]} exd4 {[%emt 0:01:20]} 4. Qxd4 {[%emt 0:00:07]} Nc6 {[%emt 0:00:06]} 5. Qd2 {[%emt 0:00:06]} g6 {[%emt 0:03:28]} 6. b3 {[%emt 0:00:17]} Bg7 {[%emt 0:00:57]} 7. Bb2 {[%emt 0:00:10]} Nf6 {[%emt 0:00:07]} 8. g3 {[%emt 0:00:26]} O-O {[%emt 0:01:01]} 9. Bg2 {[%emt 0:00:05]} Re8 {[%emt 0:00:33]} 10. Nh3 {[%emt 0:01:29]} Bxh3 {[%emt 0:17:57]} 11. Bxh3 {[%emt 0:00:08]} Ne4 {[%emt 0:01:14]} 12. Nxe4 {[%emt 0:06:15]} Rxe4 {[%emt 0:00:06]} 13. Bg2 {[%emt 0:03:37]} Re8 {[%emt 0:01:31]} 14. Bxg7 {[%emt 0:00:48]} Kxg7 {[%emt 0:00:05]} 15. O-O {[%emt 0:09:03]} a5 {[%emt 0:06:08]} 16. Rfd1 {[%emt 0:02:45]} Qf6 {[%emt 0:00:22]} 17. Rac1 {[%emt 0:03:19]} Re5 {[%emt 0:02:06]} 18. e3 {[%emt 0:02:14]} h5 {[%emt 0:01:51]} 19. Qc3 {[%emt 0:23:00]} Rae8 {[%emt 0:04:17]} 20. a3 {[%emt 0:04:32]} h4 {[%emt 0:05:25]} 21. b4 {[%emt 0:01:47]} axb4 {[%emt 0:09:07]} 22. axb4 {[%emt 0:00:06]} hxg3 {[%emt 0:03:45]} 23. hxg3 {[%emt 0:00:12]} Nd8 {[%emt 0:02:03]} 24. Rd3 {[%emt 0:03:41]} b6 {[%emt 0:01:01]} 25. f4 {[%emt 0:03:36]} R5e7 {[%emt 0:00:47]} 26. Qxf6+ {[%emt 0:00:16]} Kxf6 {[%emt 0:00:06]} 27. Kf2 {[%emt 0:00:08]} Ne6 {[%emt 0:00:32]} 28. Ra1 {[%emt 0:02:25]} Rb8 {[%emt 0:00:57]} 29. Ra8 {[%emt 0:02:11]} Rxa8 {[%emt 0:05:47]} 30. Bxa8 {[%emt 0:00:05]} Re8 {[%emt 0:00:05]} 31. Ra3 {[%emt 0:02:45]} Rb8 {[%emt 0:00:22]} 32. b5 {[%emt 0:02:41]} Re8 {[%emt 0:03:07]} 33. Bc6 {[%emt 0:01:31]} Re7 {[%emt 0:00:17]} 34. Kf3 {[%emt 0:04:03]} Nc5 {[%emt 0:01:15]} 35. e4 {[%emt 0:02:36]} Kg7 {[%emt 0:01:08]} 36. Re3 {[%emt 0:01:27]} g5 {[%emt 0:02:43]} 37. Ra3 {[%emt 0:03:28]} Nxe4 {[%emt 0:06:44]} 38. Bxe4 {[%emt 0:00:33]} g4+ {[%emt 0:00:04]} 39. Kxg4 {[%emt 0:00:26]} Rxe4 {[%emt 0:00:05]} 40. Rc3 {[%emt 0:00:23]} Kf6 {[%emt 0:03:38]} 41. Kf3 {[%emt 0:00:27]} Re1 {[%emt 0:00:07]} 42. g4 {[%emt 0:01:14]} Kg6 {[%emt 0:01:14]} 1/2-1/2

[Event "Charlotte Spring IM-B 2024"]
[Site "Charlotte"]
[Date "2024.03.29"]
[Round "4.2"]
[White "Narayanan, Samrug"]
[Black "Nandhakumar, Vaseegaran"]
[Result "1/2-1/2"]
[ECO "B06"]
[WhiteElo "2343"]
[BlackElo "2251"]
[Annotator "RC"]
[PlyCount "161"]
[EventDate "2024.03.27"]
[EventType "tourn"]
[EventCountry "USA"]
[SourceTitle "playchess.com"]
[Source "ChessBase"]
[SourceQuality "1"]
[TimeControl "5400+30"]

1. e4 {[%emt 0:00:03]} c5 {[%emt 0:00:12]} 2. Nf3 {[%emt 0:00:06]} g6 {[%emt 0:00:31]} 3. c3 {[%emt 0:00:07]} d5 {[%emt 0:00:11]} 4. exd5 {[%emt 0:00:09]} Qxd5 {[%emt 0:00:08]} 5. d4 {[%emt 0:00:04]} Bg7 {[%emt 0:00:10]} 6. Nbd2 {[%emt 0:00:07]} cxd4 {[%emt 0:00:07]} 7. Bc4 {[%emt 0:00:07]} Qd8 {[%emt 0:00:06]} 8. Nxd4 {[%emt 0:00:33]} Nh6 {[%emt 0:01:27]} 9. O-O {[%emt 0:00:44]} O-O {[%emt 0:00:13]} 10. N2f3 {[%emt 0:00:08]} Nf5 {[%emt 1:32:25]} 11. Nxf5 {[%emt 0:08:28]} Bxf5 {[%emt 0:00:00]} 12. Nd4 {[%emt 0:01:39]} Bd7 {[%emt 0:00:00]} 13. Bg5 {[%emt 0:01:34]} h6 {[%emt 0:00:00]} 14. Be3 {[%emt 0:05:50]} Qc8 {[%emt 0:00:00]} 15. Qe2 {[%emt 0:03:31]} Nc6 {[%emt 0:00:00]} 16. Rad1 {[%emt 0:04:20]} Ne5 {[%emt 0:00:00]} 17. Bb3 {[%emt 0:12:10]} a5 {[%emt 0:00:00]} 18. Bxh6 {[%emt 0:11:45]} Bxh6 {[%emt 0:00:00]} 19. Qxe5 {[%emt 0:00:06]} a4 {[%emt 0:00:00]} 20. Bd5 {[%emt 0:04:16]} e6 {[%emt 0:00:00]} 21. Bf3 {[%emt 0:00:19]} Bg7 {[%emt 0:00:00]} 22. Qe3 {[%emt 0:04:23]} Qc7 {[%emt 0:00:00]} 23. Rd2 {[%emt 0:06:37]} Bc6 {[%emt 0:00:00]} 24. Bxc6 {[%emt 0:04:55]} bxc6 {[%emt 0:00:00]} 25. Rfd1 {[%emt 0:03:52]} Rab8 {[%emt 0:00:00]} 26. Qe4 {[%emt 0:04:33]} c5 {[%emt 0:00:00]} 27. Ne2 {[%emt 0:03:50]} Qa5 {[%emt 0:00:00]} 28. a3 {[%emt 0:01:14]} Rb5 {[%emt 0:00:00]} 29. Nf4 {[%emt 0:02:41]} Rfb8 {[%emt 0:00:00]} 30. Nxe6 {[%emt 0:03:06]} fxe6 {[%emt 0:00:00]} 31. Qxe6+ {[%emt 0:00:14]} Kh7 {[%emt 0:00:00]} 32. Rd6 {[%emt 0:03:00]} c4 {[%emt 0:00:00]} 33. Ra6 {[%emt 0:03:40]} R5b6 {[%emt 0:00:00]} 34. Qh3+ {[%emt 0:01:28]} Qh5 {[%emt 0:00:00]} 35. Qxh5+ {[%emt 0:00:05]} gxh5 {[%emt 0:00:00]} 36. Rxa4 {[%emt 0:00:06]} Rxb2 {[%emt 0:00:00]} 37. Rxc4 {[%emt 0:00:26]} Rb1 {[%emt 0:00:00]} 38. Rf1 {[%emt 0:00:03]} R1b3 {[%emt 0:00:00]} 39. a4 {[%emt 0:00:15]} Rxc3 {[%emt 0:00:00]} 40. Rh4 {[%emt 0:00:20]} Rc5 {[%emt 0:00:00]} 41. g3 {[%emt 0:00:12]} Rb2 {[%emt 0:00:00]} 42. Rf4 {[%emt 0:00:30]} Be5 {[%emt 0:00:15]} 43. Re4 {[%emt 0:00:14]} Kg6 {[%emt 0:16:15]} 44. Rfe1 {[%emt 0:01:25]} Bf6 {[%emt 0:00:00]} 45. Rf4 {[%emt 0:00:29]} Rf5 {[%emt 0:00:00]} 46. Rxf5 {[%emt 0:00:17]} Kxf5 {[%emt 0:01:30]} 47. Re3 {[%emt 0:00:06]} Ra2 {[%emt 0:00:00]} 48. Rf3+ {[%emt 0:00:15]} Kg6 {[%emt 0:00:00]} 49. Kg2 {[%emt 0:00:20]} Rxa4 {[%emt 0:00:00]} 50. h3 {[%emt 0:00:08]} Ra5 {[%emt 0:00:00]} 51. Rd3 {[%emt 0:00:10]} Ra2 {[%emt 0:00:00]} 52. Rf3 {[%emt 0:00:06]} Bd4 {[%emt 0:00:00]} 53. Rf4 {[%emt 0:00:05]} Bc5 {[%emt 0:00:00]} 54. Rf3 {[%emt 0:00:05]} Be7 {[%emt 0:00:00]} 55. Kf1 {[%emt 0:00:08]} Bf6 {[%emt 0:00:00]} 56. Kg2 {[%emt 0:00:04]} Kf7 {[%emt 0:05:00]} 57. Kf1 {[%emt 0:00:04]} Rb2 {[%emt 0:00:00]} 58. Kg2 {[%emt 0:00:07]} Kg6 {[%emt 0:00:00]} 59. Kf1 {[%emt 0:00:05]} h4 {[%emt 0:00:00]} 60. g4 {[%emt 0:00:10]} Rb5 {[%emt 0:00:00]} 61. Kg2 {[%emt 0:00:06]} Rb4 {[%emt 0:00:00]} 62. Kf1 {[%emt 0:00:05]} Be5 {[%emt 0:03:00]} 63. Kg2 Bf4 {[%emt 0:00:00]} 64. Ra3 {[%emt 0:00:18]} Rd4 {[%emt 0:00:00]} 65. Ra5 {[%emt 0:00:12]} Rd2 {[%emt 0:00:00]} 66. Rf5 {[%emt 0:00:05]} Bg5 {[%emt 0:00:00]} 67. Rf3 {[%emt 0:00:06]} Rd4 {[%emt 0:00:00]} 68. Rf5 {[%emt 0:00:06]} Ra4 {[%emt 0:00:00]} 69. Kf3 {[%emt 0:00:14]} Be7 {[%emt 0:00:00]} 70. Kg2 {[%emt 0:00:05]} Bd6 {[%emt 0:00:00]} 71. Rd5 {[%emt 0:00:06]} Bf8 {[%emt 0:00:00]} 72. Rf5 {[%emt 0:00:04]} Kg7 {[%emt 0:00:00]} 73. Kf3 {[%emt 0:00:11]} Ra3+ {[%emt 0:00:00]} 74. Kg2 {[%emt 0:00:05]} Be7 {[%emt 0:00:00]} 75. Kh2 {[%emt 0:00:09]} Ra2 {[%emt 0:00:00]} 76. Kg2 {[%emt 0:00:07]} Rc2 {[%emt 0:00:00]} 77. Kf1 {[%emt 0:00:18]} Bd8 {[%emt 0:00:00]} 78. Kg2 {[%emt 0:00:05]} Rc1 {[%emt 0:00:00]} 79. Rd5 {[%emt 0:00:19]} Bc7 {[%emt 0:00:00]} 80. Rf5 {[%emt 0:00:06]} Kg6 {[%emt 0:09:00]} 81. Rf3 {[%emt 0:00:46]} 1/2-1/2

[Event "Charlotte Spring IM-B 2024"]
[Site "Charlotte"]
[Date "2024.03.29"]
[Round "4.3"]
[White "Castillo Coca, Mairebis"]
[Black "Chirilov, James A"]
[Result "1/2-1/2"]
[ECO "D00"]
[WhiteElo "2043"]
[BlackElo "2082"]
[Annotator "NA RC"]
[PlyCount "101"]
[EventDate "2024.03.27"]
[EventType "tourn"]
[EventCountry "USA"]
[SourceTitle "playchess.com"]
[Source "ChessBase"]
[SourceQuality "1"]
[TimeControl "5400+30"]

1. d4 {[%emt 0:00:02]} Nf6 {[%emt 0:00:54]} 2. Nc3 {[%emt 0:00:11]} d5 {[%emt 0:00:29]} 3. Bf4 {[%emt 0:00:11]} g6 {[%emt 0:00:09]} 4. e3 {[%emt 0:01:56]} Bg7 {[%emt 0:00:32]} 5. h4 {[%emt 0:00:02]} h5 {[%emt 0:00:25]} 6. Nf3 {[%emt 0:00:31]} O-O {[%emt 0:01:13]} 7. Be2 {[%emt 0:02:05]} c5 {[%emt 0:01:58]} 8. Nb5 {[%emt 0:01:38]} Na6 {[%emt 0:01:27]} 9. c3 {[%emt 0:02:05]} Bf5 {[%emt 0:05:38]} 10. Ne5 {[%emt 0:01:19]} Nb8 $14 {[%emt 0:08:04]} 11. dxc5 {[%emt 0:05:33]} Nbd7 {[%emt 0:33:33]} 12. Nd4 {[%emt 0:11:34]} Bg4 {[%emt 0:04:07]} 13. f3 {[%emt 0:01:53]} Nxe5 {[%emt 0:00:47]} 14. Bxe5 {[%emt 0:00:08]} Bd7 {[%emt 0:00:11]} 15. Qb3 {[%emt 0:01:42]} Qc8 {[%emt 0:01:55]} 16. O-O-O {[%emt 0:17:51]} Bh6 {[%emt 0:04:57]} 17. Bf4 {[%emt 0:09:40]} Bxf4 {[%emt 0:00:45]} 18. exf4 {[%emt 0:00:02]} Qxc5 {[%emt 0:00:36]} 19. g4 {[%emt 0:06:46]} hxg4 {[%emt 0:08:22]} 20. fxg4 {[%emt 0:00:29]} Nxg4 {[%emt 0:04:17]} 21. Rhg1 {[%emt 0:06:05]} f5 {[%emt 0:02:14]} 22. Bf3 {[%emt 0:01:01]} Kg7 {[%emt 0:01:55]} 23. h5 {[%emt 0:02:17]} gxh5 {[%emt 0:06:27]} 24. Qxb7 {[%emt 0:03:53]} Qd6 {[%emt 0:01:31]} 25. Kb1 {[%emt 0:00:25]} Kh6 {[%emt 0:02:08]} 26. Qxd5 {[%emt 0:00:09]} Qxd5 {[%emt 0:01:29]} 27. Bxd5 {[%emt 0:00:01]} Ne3 {[%emt 0:02:26]} 28. Bxa8 {[%emt 0:00:16]} Nxd1 {[%emt 0:00:01]} 29. Bf3 {[%emt 0:01:03]} Nf2 {[%emt 0:06:30]} 30. Re1 {[%emt 0:02:17]} Rf7 {[%emt 0:00:00]} 31. Bd5 {[%emt 0:00:50]} Rg7 {[%emt 0:00:00]} 32. Be6 {[%emt 0:00:28]} Nd3 {[%emt 0:00:00]} 33. Nxf5+ {[%emt 0:04:12]} Kh7 {[%emt 0:00:00]} 34. Rh1 {[%emt 0:01:52]} Bxe6 {[%emt 0:00:00]} 35. Rxh5+ {[%emt 0:00:02]} Kg8 {[%emt 0:00:00]} 36. Nxg7 {[%emt 0:00:02]} Kxg7 {[%emt 0:00:06]} 37. Ra5 {[%emt 0:00:11]} Nxf4 {[%emt 0:00:25]} 38. Rxa7 {[%emt 0:00:01]} Kf6 {[%emt 0:00:32]} 39. a4 {[%emt 0:00:17]} Bf5+ {[%emt 0:02:28]} 40. Kc1 {[%emt 0:04:00]} Nd3+ {[%emt 0:00:06]} 41. Kc2 {[%emt 0:16:00]} e5 {[%emt 0:00:18]} 42. Ra8 {[%emt 0:00:00]} e4 {[%emt 0:01:22]} 43. a5 {[%emt 0:00:00]} Kg5 {[%emt 0:01:06]} 44. Rf8 {[%emt 0:00:00]} Nc5 {[%emt 0:01:07]} 45. b4 {[%emt 0:00:00]} Ne6 {[%emt 0:00:00]} 46. Rxf5+ {[%emt 0:00:00]} Kxf5 {[%emt 0:00:00]} 47. a6 {[%emt 0:00:00]} Nc7 {[%emt 0:00:31]} 48. a7 {[%emt 0:00:00]} Ke5 {[%emt 0:00:48]} 49. Kd2 {[%emt 0:00:00]} Na8 {[%emt 0:00:17]} 50. Ke2 {[%emt 0:00:08]} Kd5 {[%emt 0:00:34]} 51. Ke3 {[%emt 0:00:28]} 1/2-1/2

[Event "Charlotte Spring IM-B 2024"]
[Site "Charlotte"]
[Date "2024.03.29"]
[Round "4.4"]
[White "Bregadze, Levan"]
[Black "Jiang, Andrew"]
[Result "1-0"]
[ECO "D35"]
[WhiteElo "2435"]
[BlackElo "2181"]
[Annotator "TA"]
[PlyCount "59"]
[EventDate "2024.03.27"]
[EventType "tourn"]
[EventCountry "USA"]
[SourceTitle "playchess.com"]
[Source "ChessBase"]
[SourceQuality "1"]
[TimeControl "5400+30"]

{[%evp 9,59,11,32,7,15,-4,16,19,13,-40,6,12,43,-4,-24,-12,-18,-22,80,75,72,71,87,-20,-37,-33,0,0,25,36,25,35,31,35,189,150,290,295,288,302,241,293,294,260,837,835,761,745,1080,1052,1008,833]} 1. d4 {[%emt 0:00:05]} d5 {[%emt 0:00:08]} 2. c4 {[%emt 0:00:05]} e6 {[%emt 0:00:10]} 3. Nc3 {[%emt 0:00:12]} Nf6 {[%emt 1:31:42]} 4. cxd5 {[%emt 0:00:41]} exd5 {[%emt 0:00:00]} 5. Bg5 {[%emt 0:00:07][%cal Bc1g5,Bg5h4,Bh4g3][%mdl 32]} Bb4 {[%emt 0:00:00]} 6. Rc1 {[%emt 0:02:49]} h6 {[%emt 0:00:00][%cal Bh7h6,Bh6h5,Bh5h4][%mdl 32]} 7. Bh4 {[%emt 0:02:14]} g5 {[%emt 0:00:00]} 8. Bg3 {[%emt 0:00:35] The position is equal.} Ne4 {[%emt 0:02:30]} 9. Qb3 {[%emt 0:06:02]} (9. e3 $11) 9... Bxc3+ {[%emt 0:00:00]} (9... c5 $15 10. e3 Nc6) 10. bxc3 $11 {[%emt 0:00:10]} h5 {[%emt 0:00:00]} 11. e3 {[%emt 0:01:45]} (11. f3 $14 Nxg3 12. hxg3) 11... h4 {[%emt 0:00:00]} 12. Be5 {[%emt 0:00:59]} f6 {[%emt 0:00:00]} 13. f3 {[%emt 0:00:04]} fxe5 {[%emt 0:00:00]} (13... Nc5 $1 $11 14. dxc5 fxe5) 14. fxe4 $16 {[%emt 0:00:06]} dxe4 {[%emt 0:00:00]} 15. Bc4 {[%emt 0:03:45] White is more active.} (15. dxe5 Qe7 16. Qd5 Nd7 17. Qxe4 Nxe5 $17 (17... Qxe5 18. Qg6+ Kd8 19. Nf3 $15)) 15... Qe7 {[%emt 0:00:00] Repels Bf7+} 16. Ne2 {[%emt 0:00:28]} (16. Nh3 $16) 16... Rf8 $11 {[%emt 0:00:00]} 17. Rf1 {[%emt 0:03:29]} Rxf1+ {[%emt 0:00:00]} 18. Kxf1 {[%emt 0:01:46]} c6 {[%emt 0:00:00]} 19. Kg1 {[%emt 0:00:23][%mdl 1024] White has compensation.} Nd7 {[%emt 0:00:00]} 20. Rf1 {[%emt 0:00:50][%cal Bc1f1,Bf1f5,Bf5e5][%mdl 32]} Nf6 {[%emt 0:00:00]} 21. h3 {[%emt 0:08:02]} b5 $2 {[%emt 0:00:00] This costs Black the game.} (21... Rb8 $14) 22. Bg8 $18 {[%emt 0:03:18] [#] Hoping for dxe5.} Qg7 {[%emt 0:00:00]} (22... exd4 $16 23. Nxd4 Bd7) 23. Be6 {[%emt 0:02:12]} Qe7 {[%emt 0:00:00]} 24. Bxc8 {[%emt 0:01:33]} Rxc8 {[%emt 0:00:00]} 25. Rf5 {[%emt 0:00:12][%csl LRe5,LRg5]} exd4 {[%emt 0:00:00]} 26. Nxd4 {[%emt 0:03:14]} Nd5 $2 {[%emt 0:00:00] [#]} (26... Qd6 27. Rxg5 Rd8) 27. Nxc6 $1 {[%emt 0:00:29][%mdl 512] White is clearly winning.} Qc5 {[%emt 0:00:00]} 28. Nd4 {[%emt 0:02:22]} (28. Rxd5 Qxe3+ 29. Kf1 Rxc6 30. Qxb5 Qc1+ 31. Kf2 Qc2+ 32. Kf1 Qc1+ 33. Kf2 Qc2+ 34. Kg1 Qc1+ 35. Kf2 $11) 28... Qxc3 {[%emt 0:00:00]} 29. Qxb5+ {[%emt 0:02:09]} (29. Rxd5 Qe1+ 30. Kh2 Qg3+ 31. Kh1 Rc1+) ({Stronger than} 29. Qxd5 Qxe3+ 30. Kh2 (30. Kh1 $2 Rc1+) 30... Qg3+ 31. Kg1 Rc1+ (31... Qe3+ 32. Kh2 $11) 32. Rf1 Qe3+ 33. Kh2 Qg3+ (33... Rxf1 34. Qxb5+ Ke7 35. Qb7+ Kf6 36. Qc6+ Kg7 37. Qd7+ Kg8 38. Qe8+ Kg7 39. Qe7+ Kh6 40. Qe6+ Kh7 41. Qd7+ Kg8 42. Qe8+ Kg7 43. Qe5+ Kg8 44. Qe8+ $11) 34. Kg1 Qe3+ 35. Kh2 Qg3+ (35... Rxf1 36. Qxb5+ Ke7 37. Qe5+ Kf7 38. Qd5+ Kf8 39. Qd8+ Kg7 40. Qd7+ Kg6 41. Qe6+ Kg7 42. Qd7+ Kg6 43. Qc6+ Rf6 44. Qe8+ Rf7 45. Qg8+ Kf6 46. Qh8+ Ke7 47. Qe5+ Kf8 48. Qh8+ Ke7 49. Qe5+ Kf8 50. Qh8+ Ke7 $11) 36. Kg1 $11) 29... Ke7 {[%emt 0:00:00]} 30. Re5+ {[%emt 0:00:24] Weighted Error Value: White=0.20 (precise) /Black=0.41.  Mistake:       	White=3     	Black=5      Inaccurate:     	---       	Black=2      OK:         	White=11    	Black=6      Best:        	White=2     	Black=4      Brilliant:      	White=1     	---} (30. Rxd5 {is a self mate.} Qxe3+ 31. Kh2 Qf4+ (31... Qg3+ 32. Kg1 Qe3+ 33. Kh2 Qf4+ 34. g3 Qxg3+ 35. Kh1 Rc1+ 36. Qf1 Rxf1#) 32. g3 Qxg3+ (32... hxg3+ $2 {leads to mate.} 33. Kh1 Rc1+ 34. Kg2 Qf2#) 33. Kh1 Rc1+) 1-0

[Event "Charlotte Spring IM-B 2024"]
[Site "Charlotte"]
[Date "2024.03.29"]
[Round "4.5"]
[White "Lima, Darcy"]
[Black "Tang, Benjamin"]
[Result "1/2-1/2"]
[ECO "E97"]
[WhiteElo "2364"]
[BlackElo "2324"]
[Annotator "RC"]
[PlyCount "66"]
[EventDate "2024.03.27"]
[EventType "tourn"]
[EventCountry "USA"]
[SourceTitle "playchess.com"]
[Source "ChessBase"]
[SourceQuality "1"]
[TimeControl "5400+30"]

1. d4 {[%emt 0:00:03]} Nf6 {[%emt 0:06:19]} 2. c4 {[%emt 0:00:18]} g6 {[%emt 0:00:06]} 3. Nc3 {[%emt 0:00:08]} Bg7 {[%emt 0:00:04]} 4. e4 {[%emt 0:00:43]} d6 {[%emt 0:00:03]} 5. Be2 {[%emt 0:00:05]} O-O {[%emt 0:00:18]} 6. Nf3 {[%emt 0:00:12]} e5 {[%emt 0:00:05]} 7. O-O {[%emt 0:00:33]} Nc6 {[%emt 0:00:02]} 8. dxe5 {[%emt 0:00:35]} dxe5 {[%emt 0:00:42]} 9. Bg5 {[%emt 0:00:55]} Nd4 {[%emt 0:06:57]} 10. Nxe5 {[%emt 0:16:30]} h6 {[%emt 0:01:51]} 11. Bh4 {[%emt 0:27:37]} g5 {[%emt 0:23:37]} 12. Bg3 {[%emt 0:00:37]} Re8 {[%emt 0:00:06]} 13. f4 {[%emt 0:08:41]} gxf4 {[%emt 0:05:59]} 14. Bxf4 {[%emt 0:00:02]} Nxe2+ {[%emt 0:00:56]} 15. Qxe2 {[%emt 0:02:13]} Qd4+ {[%emt 0:02:43]} 16. Kh1 {[%emt 0:08:38]} Rxe5 {[%emt 0:00:58]} 17. Rad1 {[%emt 0:00:04]} Qc5 {[%emt 0:00:14]} 18. Bxe5 {[%emt 0:00:13]} Qxe5 {[%emt 0:00:07]} 19. Rd8+ {[%emt 0:00:03]} Kh7 {[%emt 0:00:52]} 20. Qd3 {[%emt 0:00:28]} b6 {[%emt 0:10:17]} 21. Nd5 {[%emt 0:06:15]} c6 {[%emt 0:10:08]} 22. Ne7 {[%emt 0:16:33]} Ng4 {[%emt 0:04:12]} 23. g3 {[%emt 0:00:09]} Bf5 {[%emt 0:02:33]} 24. Nxf5 {[%emt 0:03:10]} Rxd8 {[%emt 0:00:05]} 25. Qxd8 {[%emt 0:00:05]} Qxe4+ {[%emt 0:00:02]} 26. Kg1 {[%emt 0:00:00]} Qe2 {[%emt 0:02:57]} 27. Rf4 {[%emt 0:01:57]} Qxh2+ {[%emt 0:03:15]} 28. Kf1 {[%emt 0:00:01]} Qh1+ {[%emt 0:00:11]} 29. Ke2 {[%emt 0:00:04]} Qg2+ {[%emt 0:00:04]} 30. Kd1 {[%emt 0:06:16]} Qg1+ {[%emt 0:11:40]} 31. Kc2 {[%emt 0:00:46]} Bf6 {[%emt 0:02:16]} 32. Qd7 {[%emt 0:01:49]} Qg2+ {[%emt 0:00:18]} 33. Kd1 {[%emt 0:00:00]} Qg1+ {[%emt 0:02:01]} 1/2-1/2